fUSD/lending_fUSD_20250503
["ID","MTS","AMOUNT","RATE_DAILY","PERIOD"]
[359719297,1746276650314,-1711.149975,0.0002,2]
[359719298,1746276650325,-4361.0,0.0002,2]
[359719299,1746276650336,-324.54601987,0.0002,2]
[359719300,1746276769103,206.1717,0.0001993,23]
[359719301,1746276780682,485.0,0.00030137,120]
[359719302,1746276882103,169.05,0.00019178,2]
[359719303,1746276944497,250.0,0.0001889,7]
[359719304,1746276946082,97377.596,0.00032877,60]
[359719305,1746276987031,1483.29326735,0.00019999,7]
[359719306,1746277143214,164.21,0.00015062,2]
[359719307,1746277148429,150.0,0.000195,2]
[359719308,1746277182975,600.24,0.00016901,2]
[359719309,1746277183392,600.24,0.00019165,2]
[359719310,1746277215464,77439.0384997,0.0003,30]
[359719311,1746277240582,522.553121,0.00019482,2]
[359719312,1746277252655,1000.0,0.00018814,2]
[359719319,1746277659548,393.83,0.00018759,2]
[359719320,1746277711076,1009.0,0.00032877,60]
[359719321,1746277772730,1063.4,0.00032876,60]
[359719322,1746277800321,200.384891,0.0003,30]
[359719329,1746277832188,-170.7393119,0.00019529,2]
[359719330,1746277832198,-200.0,0.00019555,2]
[359719331,1746277832208,-151.0,0.0001958,2]
[359719332,1746277832218,-860.70068814,0.00019629,2]
[359719333,1746277832230,-4348.64793464,0.00019629,2]
[359719334,1746277832239,-745.91036835,0.0001963,2]
[359719335,1746277832249,-1200.0,0.0001963,2]
[359719336,1746277832258,-381.7058,0.00019631,2]
[359719337,1746277832268,-324.46737268,0.00019631,2]
[359719338,1746277832279,-114.48052732,0.00019631,2]
[359719339,1746277832289,-290.8814,0.00019631,2]
[359719340,1746277832299,-5209.34862274,0.00019659,2]
[359719342,1746277832308,-745.9103683,0.0001966,2]
[359719344,1746277832318,-5209.34862274,0.00019689,2]
[359719346,1746277832327,-745.9103683,0.0001969,2]
[359719347,1746277832336,-207.4,0.00019717,2]
[359719348,1746277832346,-500.0,0.00019718,2]
[359719349,1746277832355,-500.0,0.00019718,2]
[359719350,1746277832365,-500.0,0.00019718,2]
[359719351,1746277832374,-500.0,0.00019718,2]
[359719352,1746277832383,-500.0,0.00019718,2]
[359719353,1746277832393,-500.0,0.00019718,2]
[359719354,1746277832402,-500.0,0.00019718,2]
[359719355,1746277832412,-500.0,0.00019718,2]
[359719357,1746277832421,-500.0,0.00019718,2]
[359719359,1746277832430,-500.0,0.00019718,2]
[359719361,1746277832439,-500.0,0.00019718,2]
[359719363,1746277832449,-500.0,0.00019718,2]
[359719365,1746277832459,-500.0,0.00019718,2]
[359719367,1746277832469,-500.0,0.00019718,2]
[359719369,1746277832478,-500.0,0.00019718,2]
[359719371,1746277832487,-500.0,0.00019718,2]
[359719373,1746277832497,-500.0,0.00019718,2]
[359719375,1746277832505,-500.0,0.00019718,2]
[359719377,1746277832518,-500.0,0.00019718,2]
[359719379,1746277832527,-500.0,0.00019718,2]
[359719381,1746277832536,-500.0,0.00019718,2]
[359719383,1746277832545,-500.0,0.00019718,2]
[359719385,1746277832554,-500.0,0.00019718,2]
[359719387,1746277832565,-500.0,0.00019718,2]
[359719389,1746277832574,-500.0,0.00019718,2]
[359719391,1746277832583,-500.0,0.00019718,2]
[359719393,1746277832592,-500.0,0.00019718,2]
[359719395,1746277832601,-500.0,0.00019718,2]
[359719397,1746277832610,-500.0,0.00019718,2]
[359719399,1746277832619,-500.0,0.00019718,2]
[359719401,1746277832629,-500.0,0.00019718,2]
[359719403,1746277832638,-500.0,0.00019718,2]
[359719405,1746277832647,-500.0,0.00019718,2]
[359719407,1746277832656,-500.0,0.00019718,2]
[359719409,1746277832665,-500.0,0.00019718,2]
[359719411,1746277832674,-500.0,0.00019718,2]
[359719412,1746277832683,-500.0,0.00019718,2]
[359719413,1746277832692,-500.0,0.00019718,2]
[359719414,1746277832703,-500.0,0.00019718,2]
[359719415,1746277832713,-500.0,0.00019718,2]
[359719416,1746277832722,-500.0,0.00019718,2]
[359719417,1746277832733,-500.0,0.00019718,2]
[359719418,1746277832743,-500.0,0.00019718,2]
[359719419,1746277832753,-500.0,0.00019718,2]
[359719420,1746277832762,-500.0,0.00019718,2]
[359719421,1746277832771,-500.0,0.00019718,2]
[359719422,1746277832780,-500.0,0.00019718,2]
[359719423,1746277832789,-500.0,0.00019718,2]
[359719424,1746277832798,-500.0,0.00019718,2]
[359719425,1746277832808,-500.0,0.00019718,2]
[359719426,1746277832819,-500.0,0.00019718,2]
[359719427,1746277832830,-500.0,0.00019718,2]
[359719428,1746277832840,-500.0,0.00019718,2]
[359719429,1746277832850,-500.0,0.00019718,2]
[359719430,1746277832861,-500.0,0.00019718,2]
[359719431,1746277832870,-500.0,0.00019718,2]
[359719432,1746277832879,-500.0,0.00019718,2]
[359719433,1746277832889,-500.0,0.00019718,2]
[359719434,1746277832900,-500.0,0.00019718,2]
[359719435,1746277832909,-500.0,0.00019718,2]
[359719436,1746277832919,-500.0,0.00019718,2]
[359719437,1746277832929,-500.0,0.00019718,2]
[359719438,1746277832939,-500.0,0.00019718,2]
[359719439,1746277832948,-500.0,0.00019718,2]
[359719440,1746277832960,-500.0,0.00019718,2]
[359719441,1746277832970,-500.0,0.00019718,2]
[359719442,1746277832980,-500.0,0.00019718,2]
[359719443,1746277832990,-446.45645901,0.00019718,2]
[359719444,1746277833001,-500.0,0.00019718,2]
[359719445,1746277833010,-500.0,0.00019718,2]
[359719446,1746277833019,-500.0,0.00019718,2]
[359719447,1746277833028,-500.0,0.00019718,2]
[359719448,1746277833038,-443.14917289,0.00019718,2]
[359719451,1746277838067,-56.85082711,0.00019718,2]
[359719452,1746277838076,-500.0,0.00019718,2]
[359719453,1746277838086,-500.0,0.00019718,2]
[359719454,1746277838096,-500.0,0.00019718,2]
[359719455,1746277838105,-500.0,0.00019718,2]
[359719456,1746277838114,-500.0,0.00019718,2]
[359719457,1746277838124,-500.0,0.00019718,2]
[359719458,1746277838133,-500.0,0.00019718,2]
[359719459,1746277838142,-449.99999999,0.00019718,2]
[359719460,1746277838153,-151.0,0.00019718,2]
[359719461,1746277838163,-668.65185757,0.00019718,2]
[359719462,1746277838177,-4812.4,0.00019719,2]
[359719463,1746277838186,-5209.34862274,0.00019719,2]
[359719464,1746277838196,-9999.99,0.0001972,2]
[359719465,1746277838205,-2259.98,0.0001972,2]
[359719466,1746277838215,-1219.12,0.0001972,2]
[359719467,1746277838224,-531.09,0.0001972,2]
[359719468,1746277838234,-6953.78,0.0001972,2]
[359719469,1746277838243,-150.99,0.0001972,2]
[359719470,1746277838253,-999.99,0.0001972,2]
[359719471,1746277838262,-150.99,0.0001972,2]
[359719472,1746277838272,-499.99,0.0001972,2]
[359719473,1746277838281,-9999.99,0.0001972,2]
[359719474,1746277838290,-1746.12,0.0001972,2]
[359719475,1746277838300,-745.9103683,0.0001972,2]
[359719476,1746277838309,-581.0,0.00019726,2]
[359719477,1746277838318,-199.29,0.00019728,2]
[359719478,1746277838328,-450.0,0.00019728,2]
[359719479,1746277838337,-187.51902884,0.00019728,2]
[359719480,1746277838346,-194.10746415,0.00019728,2]
[359719481,1746277838357,-335.38154665,0.00019728,2]
[359719482,1746277838366,-186.20409185,0.00019728,2]
[359719483,1746277838376,-299.64495513,0.00019728,2]
[359719484,1746277838386,-500.0,0.00019728,2]
[359719485,1746277838395,-500.0,0.00019728,2]
[359719486,1746277838405,-500.0,0.00019728,2]
[359719487,1746277838415,-208.70888029,0.00019728,2]
[359719488,1746277838425,-500.0,0.00019728,2]
[359719489,1746277838435,-500.0,0.00019728,2]
[359719490,1746277838444,-500.0,0.00019728,2]
[359719491,1746277838453,-500.0,0.00019728,2]
[359719492,1746277838463,-500.0,0.00019728,2]
[359719493,1746277838472,-450.0,0.00019729,2]
[359719494,1746277838483,-450.0,0.00019729,2]
[359719495,1746277838493,-450.0,0.00019729,2]
[359719496,1746277838503,-450.0,0.00019729,2]
[359719497,1746277838513,-450.0,0.00019729,2]
[359719498,1746277838524,-450.0,0.00019729,2]
[359719499,1746277838534,-450.0,0.00019729,2]
[359719500,1746277838543,-450.0,0.00019729,2]
[359719501,1746277838552,-450.0,0.00019729,2]
[359719502,1746277838564,-450.0,0.00019729,2]
[359719504,1746277838573,-691.71,0.00019729,2]
[359719506,1746277838584,-450.0,0.00019729,2]
[359719507,1746277838594,-450.0,0.00019729,2]
[359719512,1746277838880,-450.0,0.00019729,2]
[359719513,1746277838890,-450.0,0.00019729,2]
[359719514,1746277838899,-450.0,0.00019729,2]
[359719515,1746277838909,-450.0,0.00019729,2]
[359719516,1746277838920,-450.0,0.00019729,2]
[359719517,1746277838930,-250.0,0.00019729,2]
[359719518,1746277838939,-450.0,0.00019729,2]
[359719519,1746277838948,-450.0,0.00019729,2]
[359719520,1746277838957,-450.0,0.00019729,2]
[359719521,1746277838967,-450.0,0.00019729,2]
[359719522,1746277838977,-450.0,0.00019729,2]
[359719523,1746277838987,-450.0,0.00019729,2]
[359719524,1746277838996,-450.0,0.00019729,2]
[359719525,1746277839005,-450.0,0.00019729,2]
[359719526,1746277839016,-450.0,0.00019729,2]
[359719527,1746277839026,-450.0,0.00019729,2]
[359719528,1746277839035,-450.0,0.00019729,2]
[359719529,1746277839044,-450.0,0.00019729,2]
[359719530,1746277839053,-450.0,0.00019729,2]
[359719531,1746277839064,-450.0,0.00019729,2]
[359719532,1746277839073,-534.1,0.00019729,2]
[359719533,1746277839082,-488.93,0.00019729,2]
[359719534,1746277839091,-450.0,0.00019729,2]
[359719535,1746277839100,-450.0,0.00019729,2]
[359719536,1746277839109,-450.0,0.00019729,2]
[359719537,1746277839118,-450.0,0.00019729,2]
[359719538,1746277839127,-450.0,0.00019729,2]
[359719539,1746277839137,-450.0,0.00019729,2]
[359719540,1746277839146,-450.0,0.00019729,2]
[359719541,1746277839155,-450.0,0.00019729,2]
[359719542,1746277839164,-1041.73,0.00019729,2]
[359719543,1746277839173,-450.0,0.00019729,2]
[359719544,1746277839182,-450.0,0.00019729,2]
[359719545,1746277839192,-450.0,0.00019729,2]
[359719546,1746277839201,-731.48,0.00019729,2]
[359719547,1746277839210,-450.0,0.00019729,2]
[359719548,1746277839220,-450.0,0.00019729,2]
[359719549,1746277839229,-372.21727,0.00019729,2]
[359719550,1746277839238,-450.0,0.00019729,2]
[359719551,1746277839247,-792.24,0.00019729,2]
[359719552,1746277839256,-450.0,0.00019729,2]
[359719553,1746277839265,-450.0,0.00019729,2]
[359719554,1746277839274,-567.37,0.00019729,2]
[359719555,1746277839283,-450.0,0.00019729,2]
[359719556,1746277839293,-453.69,0.00019729,2]
[359719557,1746277839302,-450.0,0.00019729,2]
[359719558,1746277839311,-450.0,0.00019729,2]
[359719559,1746277839320,-594.544832,0.00019729,2]
[359719560,1746277839330,-245.51823283,0.00019729,2]
[359719561,1746277839339,-450.0,0.00019729,2]
[359719562,1746277839348,-450.0,0.00019729,2]
[359719563,1746277839367,-450.0,0.00019729,2]
[359719564,1746277839377,-230.0,0.00019729,2]
[359719565,1746277839387,-279.89952075,0.00019729,2]
[359719566,1746277839397,-450.0,0.00019729,2]
[359719567,1746277839407,-450.0,0.00019729,2]
[359719568,1746277839417,-450.0,0.00019729,2]
[359719569,1746277839426,-450.0,0.00019729,2]
[359719570,1746277839436,-450.0,0.00019729,2]
[359719571,1746277839446,-450.0,0.00019729,2]
[359719572,1746277839455,-450.0,0.00019729,2]
[359719573,1746277839465,-153.38,0.00019729,2]
[359719574,1746277839475,-523.99,0.00019729,2]
[359719575,1746277839484,-450.0,0.00019729,2]
[359719576,1746277839494,-500.0,0.00019729,2]
[359719577,1746277839504,-450.0,0.00019729,2]
[359719578,1746277839514,-450.0,0.00019729,2]
[359719579,1746277839527,-450.0,0.00019729,2]
[359719580,1746277839536,-261.63,0.00019729,2]
[359719581,1746277839545,-450.0,0.00019729,2]
[359719582,1746277839555,-272.83,0.00019729,2]
[359719583,1746277839565,-470.0,0.00019729,2]
[359719584,1746277839575,-450.0,0.00019729,2]
[359719585,1746277839584,-450.0,0.00019729,2]
[359719586,1746277839596,-450.0,0.00019729,2]
[359719587,1746277839606,-450.0,0.00019729,2]
[359719588,1746277839616,-450.0,0.00019729,2]
[359719589,1746277839626,-450.0,0.00019729,2]
[359719590,1746277839635,-450.0,0.00019729,2]
[359719591,1746277839644,-450.0,0.00019729,2]
[359719592,1746277839654,-481.624246,0.00019729,2]
[359719593,1746277839665,-450.0,0.00019729,2]
[359719594,1746277839675,-463.30807978,0.00019729,2]
[359719595,1746277839685,-450.0,0.00019729,2]
[359719596,1746277839695,-450.0,0.00019729,2]
[359719597,1746277839705,-450.0,0.00019729,2]
[359719598,1746277839714,-450.0,0.00019729,2]
[359719599,1746277839724,-450.0,0.00019729,2]
[359719600,1746277839734,-450.0,0.00019729,2]
[359719601,1746277839745,-326.16887724,0.00019729,2]
[359719602,1746277839754,-480.6,0.00019729,2]
[359719603,1746277839764,-457.84313494,0.00019729,2]
[359719604,1746277839773,-450.0,0.00019729,2]
[359719605,1746277839783,-468.96079997,0.00019729,2]
[359719606,1746277839794,-450.0,0.00019729,2]
[359719607,1746277839804,-297.06007208,0.00019729,2]
[359719608,1746277839813,-450.0,0.00019729,2]
[359719609,1746277839823,-466.50913843,0.00019729,2]
[359719610,1746277839832,-450.0,0.00019729,2]
[359719611,1746277839842,-450.0,0.00019729,2]
[359719612,1746277839852,-450.0,0.00019729,2]
[359719613,1746277839861,-450.0,0.00019729,2]
[359719614,1746277839873,-450.0,0.00019729,2]
[359719615,1746277839882,-450.0,0.00019729,2]
[359719616,1746277839891,-450.0,0.00019729,2]
[359719617,1746277839901,-450.0,0.00019729,2]
[359719618,1746277839911,-450.0,0.00019729,2]
[359719619,1746277839921,-450.0,0.00019729,2]
[359719620,1746277839930,-550.30813027,0.00019729,2]
[359719621,1746277839940,-450.0,0.00019729,2]
[359719622,1746277839950,-450.0,0.00019729,2]
[359719623,1746277839960,-384.31533776,0.00019729,2]
[359719624,1746277839970,-732.0,0.00019729,2]
[359719625,1746277839979,-450.0,0.00019729,2]
[359719626,1746277839989,-450.0,0.00019729,2]
[359719627,1746277839998,-735.17,0.00019729,2]
[359719628,1746277840007,-450.0,0.00019729,2]
[359719629,1746277840017,-450.0,0.00019729,2]
[359719630,1746277840026,-450.0,0.00019729,2]
[359719631,1746277840037,-595.41,0.00019729,2]
[359719632,1746277840047,-450.0,0.00019729,2]
[359719633,1746277840056,-450.0,0.00019729,2]
[359719634,1746277840065,-450.0,0.00019729,2]
[359719635,1746277840078,-450.0,0.00019729,2]
[359719636,1746277840088,-450.0,0.00019729,2]
[359719637,1746277840098,-450.0,0.00019729,2]
[359719638,1746277840108,-450.0,0.00019729,2]
[359719639,1746277840117,-450.0,0.00019729,2]
[359719640,1746277840127,-450.0,0.00019729,2]
[359719641,1746277840137,-464.81,0.00019729,2]
[359719642,1746277840147,-450.0,0.00019729,2]
[359719643,1746277840156,-450.0,0.00019729,2]
[359719644,1746277840166,-450.0,0.00019729,2]
[359719645,1746277840176,-1487.51,0.00019729,2]
[359719646,1746277840186,-2361.9,0.00019729,2]
[359719647,1746277840196,-508.49,0.00019729,2]
[359719648,1746277840206,-450.0,0.00019729,2]
[359719649,1746277840216,-450.0,0.00019729,2]
[359719650,1746277840226,-450.0,0.00019729,2]
[359719651,1746277840235,-1008.98,0.00019729,2]
[359719652,1746277840244,-450.0,0.00019729,2]
[359719653,1746277840254,-518.92159158,0.00019729,2]
[359719654,1746277840264,-1134.33,0.00019729,2]
[359719655,1746277840274,-450.0,0.00019729,2]
[359719656,1746277840284,-452.63963356,0.00019729,2]
[359719657,1746277840293,-450.0,0.00019729,2]
[359719658,1746277840303,-4822.09,0.00019729,2]
[359719659,1746277840313,-450.0,0.00019729,2]
[359719660,1746277840323,-450.0,0.00019729,2]
[359719661,1746277840332,-471.27,0.00019729,2]
[359719662,1746277840342,-450.0,0.00019729,2]
[359719663,1746277840351,-612.52,0.00019729,2]
[359719664,1746277840361,-450.0,0.00019729,2]
[359719665,1746277840370,-512.73,0.00019729,2]
[359719666,1746277840380,-450.0,0.00019729,2]
[359719667,1746277840389,-450.0,0.00019729,2]
[359719668,1746277840399,-450.0,0.00019729,2]
[359719669,1746277840408,-450.0,0.00019729,2]
[359719670,1746277840418,-450.0,0.00019729,2]
[359719671,1746277840427,-450.0,0.00019729,2]
[359719672,1746277840437,-450.0,0.00019729,2]
[359719673,1746277840447,-450.0,0.00019729,2]
[359719674,1746277840457,-450.0,0.00019729,2]
[359719675,1746277840466,-450.0,0.00019729,2]
[359719676,1746277840476,-1844.31,0.00019729,2]
[359719677,1746277840485,-513.98,0.00019729,2]
[359719678,1746277840494,-5779.68,0.00019729,2]
[359719679,1746277840503,-450.0,0.00019729,2]
[359719680,1746277840513,-450.0,0.00019729,2]
[359719681,1746277840526,-500.0,0.00019729,2]
[359719682,1746277840535,-608.84,0.00019729,2]
[359719683,1746277840545,-714.67,0.00019729,2]
[359719684,1746277840554,-450.0,0.00019729,2]
[359719685,1746277840566,-5399.11,0.00019729,2]
[359719686,1746277840575,-807.19,0.00019729,2]
[359719687,1746277840585,-450.0,0.00019729,2]
[359719688,1746277840596,-450.0,0.00019729,2]
[359719689,1746277840606,-168.62056832,0.00019729,2]
[359719690,1746277840619,-450.0,0.00019729,2]
[359719691,1746277840628,-450.0,0.00019729,2]
[359719692,1746277840638,-450.0,0.00019729,2]
[359719693,1746277840648,-1834.88,0.00019729,2]
[359719694,1746277840657,-479.20352983,0.00019729,2]
[359719695,1746277840670,-450.0,0.00019729,2]
[359719696,1746277840683,-450.0,0.00019729,2]
[359719697,1746277840693,-745.07,0.00019729,2]
[359719698,1746277840703,-541.70729249,0.00019729,2]
[359719699,1746277840712,-450.0,0.00019729,2]
[359719700,1746277840723,-528.94,0.00019729,2]
[359719701,1746277840732,-450.0,0.00019729,2]
[359719702,1746277840742,-1805.76,0.00019729,2]
[359719703,1746277840752,-450.0,0.00019729,2]
[359719704,1746277840762,-450.0,0.00019729,2]
[359719705,1746277840772,-450.0,0.00019729,2]
[359719707,1746277840781,-450.0,0.00019729,2]
[359719709,1746277840791,-5531.55,0.00019729,2]
[359719710,1746277840800,-999.0,0.00019729,2]
[359719711,1746277840810,-1010.45,0.00019729,2]
[359719712,1746277840819,-450.0,0.00019729,2]
[359719713,1746277840829,-713.84,0.00019729,2]
[359719714,1746277840839,-450.0,0.00019729,2]
[359719715,1746277840849,-450.0,0.00019729,2]
[359719716,1746277840859,-450.0,0.00019729,2]
[359719717,1746277840869,-516.32663185,0.00019729,2]
[359719718,1746277840879,-710.78,0.00019729,2]
[359719720,1746277840888,-450.0,0.00019729,2]
[359719721,1746277840898,-73413.19054319,0.00019729,2]
[359719722,1746277840957,-10497.40973077,0.00019729,2]
[359719726,1746277841228,-500.0,0.00019728,2]
[359719727,1746277841239,-3172.6988002,0.00019729,2]
[359719728,1746277841284,-4761.46074207,0.00019729,2]
[359719729,1746277841300,-11311.36018377,0.00019729,2]
[359719730,1746277841310,-450.0,0.00019729,2]
[359719731,1746277841320,-636.7,0.00019729,2]
[359719732,1746277841330,-450.0,0.00019729,2]
[359719733,1746277841340,-450.0,0.00019729,2]
[359719734,1746277841350,-450.0,0.00019729,2]
[359719735,1746277841359,-450.000001,0.00019729,2]
[359719736,1746277841369,-450.0,0.00019729,2]
[359719737,1746277841379,-450.0,0.00019729,2]
[359719738,1746277841390,-250.0,0.00019729,2]
[359719739,1746277841399,-450.0,0.00019729,2]
[359719740,1746277841409,-450.0,0.00019729,2]
[359719741,1746277841419,-450.0,0.00019729,2]
[359719742,1746277841429,-5299.53,0.00019729,2]
[359719743,1746277841439,-450.0,0.00019729,2]
[359719744,1746277841449,-514.38,0.00019729,2]
[359719745,1746277841458,-450.0,0.00019729,2]
[359719746,1746277841468,-450.0,0.00019729,2]
[359719747,1746277841478,-450.0,0.00019729,2]
[359719748,1746277841488,-450.0,0.00019729,2]
[359719749,1746277841497,-450.0,0.00019729,2]
[359719750,1746277841507,-450.0,0.00019729,2]
[359719751,1746277841520,-450.0,0.00019729,2]
[359719752,1746277841530,-450.0,0.00019729,2]
[359719753,1746277841539,-314.3,0.00019729,2]
[359719754,1746277841549,-25380.5,0.00019729,2]
[359719755,1746277841559,-537.47,0.00019729,2]
[359719756,1746277841569,-181.68,0.00019729,2]
[359719757,1746277841578,-641.31,0.00019729,2]
[359719758,1746277841588,-40.89914727,0.00019729,2]
[359719759,1746277841606,-620.82085273,0.00019729,2]
[359719760,1746277841615,-22.89218233,0.00019729,2]
[359719761,1746277841627,-536.49781767,0.00019729,2]
[359719762,1746277841636,-131.6171823,0.00019729,2]
[359719763,1746277841649,-318.3828177,0.00019729,2]
[359719764,1746277841659,-221.22117015,0.00019729,2]
[359719765,1746277841673,-228.77882985,0.00019729,2]
[359719766,1746277841684,-450.0,0.00019729,2]
[359719767,1746277841694,-490.08,0.00019729,2]
[359719768,1746277841703,-1714.77,0.00019729,2]
[359719769,1746277841713,-654.6,0.00019729,2]
[359719770,1746277841722,-450.0,0.00019729,2]
[359719771,1746277841732,-450.0,0.00019729,2]
[359719772,1746277841741,-450.0,0.00019729,2]
[359719773,1746277841751,-998.9,0.00019729,2]
[359719774,1746277841760,-297.23,0.00019729,2]
[359719775,1746277841770,-450.0,0.00019729,2]
[359719776,1746277841779,-971.15,0.00019729,2]
[359719777,1746277841789,-450.0,0.00019729,2]
[359719778,1746277841798,-450.0,0.00019729,2]
[359719779,1746277841807,-14819.03,0.00019729,2]
[359719780,1746277841816,-450.0,0.00019729,2]
[359719781,1746277841826,-450.0,0.00019729,2]
[359719782,1746277841835,-450.0,0.00019729,2]
[359719783,1746277841845,-1444.19,0.00019729,2]
[359719784,1746277841854,-3843.1,0.00019729,2]
[359719785,1746277841863,-450.0,0.00019729,2]
[359719786,1746277841873,-450.0,0.00019729,2]
[359719787,1746277841883,-450.0,0.00019729,2]
[359719788,1746277841892,-450.0,0.00019729,2]
[359719789,1746277841903,-450.0,0.00019729,2]
[359719790,1746277841912,-813.31,0.00019729,2]
[359719791,1746277841922,-450.0,0.00019729,2]
[359719792,1746277841931,-450.0,0.00019729,2]
[359719793,1746277841941,-834.48,0.00019729,2]
[359719794,1746277841952,-450.0,0.00019729,2]
[359719795,1746277841962,-487.78513518,0.00019729,2]
[359719796,1746277841971,-450.0,0.00019729,2]
[359719797,1746277841981,-450.0,0.00019729,2]
[359719798,1746277841990,-655.85,0.00019729,2]
[359719799,1746277842000,-450.0,0.00019729,2]
[359719800,1746277842010,-450.0,0.00019729,2]
[359719801,1746277842020,-450.0,0.00019729,2]
[359719802,1746277842029,-450.0,0.00019729,2]
[359719803,1746277842038,-450.0,0.00019729,2]
[359719804,1746277842048,-450.0,0.00019729,2]
[359719805,1746277842057,-590.06,0.00019729,2]
[359719806,1746277842066,-450.0,0.00019729,2]
[359719807,1746277842075,-509.93,0.00019729,2]
[359719808,1746277842084,-450.0,0.00019729,2]
[359719809,1746277842093,-450.0,0.00019729,2]
[359719810,1746277842102,-617.63,0.00019729,2]
[359719811,1746277842113,-468.70797676,0.00019729,2]
[359719812,1746277842122,-652.89,0.00019729,2]
[359719813,1746277842131,-450.0,0.00019729,2]
[359719814,1746277842140,-450.0,0.00019729,2]
[359719815,1746277842152,-450.0,0.00019729,2]
[359719816,1746277842166,-1178.64,0.00019729,2]
[359719817,1746277842177,-450.0,0.00019729,2]
[359719818,1746277842187,-450.0,0.00019729,2]
[359719819,1746277842196,-471.19,0.00019729,2]
[359719820,1746277842205,-450.0,0.00019729,2]
[359719821,1746277842214,-450.0,0.00019729,2]
[359719822,1746277842224,-1798.24,0.00019729,2]
[359719823,1746277842233,-450.0,0.00019729,2]
[359719824,1746277842250,-450.0,0.00019729,2]
[359719825,1746277842261,-531.13,0.00019729,2]
[359719826,1746277842270,-898.64,0.00019729,2]
[359719827,1746277842279,-450.0,0.00019729,2]
[359719828,1746277842289,-450.0,0.00019729,2]
[359719829,1746277842298,-450.0,0.00019729,2]
[359719830,1746277842308,-450.0,0.00019729,2]
[359719831,1746277842317,-450.0,0.00019729,2]
[359719832,1746277842326,-450.0,0.00019729,2]
[359719833,1746277842335,-450.0,0.00019729,2]
[359719834,1746277842344,-450.0,0.00019729,2]
[359719835,1746277842354,-760.63,0.00019729,2]
[359719836,1746277842363,-622.73,0.00019729,2]
[359719837,1746277842372,-450.0,0.00019729,2]
[359719838,1746277842382,-702.63,0.00019729,2]
[359719839,1746277842391,-450.0,0.00019729,2]
[359719840,1746277842401,-513.89,0.00019729,2]
[359719841,1746277842410,-290.0961764,0.00019729,2]
[359719842,1746277842420,-481.68611999,0.00019729,2]
[359719843,1746277842430,-450.0,0.00019729,2]
[359719844,1746277842439,-450.0,0.00019729,2]
[359719845,1746277842449,-450.0,0.00019729,2]
[359719846,1746277842458,-668.44,0.00019729,2]
[359719847,1746277842468,-450.0,0.00019729,2]
[359719848,1746277842477,-599.87,0.00019729,2]
[359719849,1746277842487,-450.0,0.00019729,2]
[359719850,1746277842496,-676.94,0.00019729,2]
[359719851,1746277842505,-450.0,0.00019729,2]
[359719852,1746277842515,-276.74108748,0.00019729,2]
[359719853,1746277842529,-450.0,0.00019729,2]